Cogmind - Beta 16.1 @@@ ROGUE MODE // 2026.02.19 @ 22:48:53 Player: Ceorik Result: Destroyed by EA-R6L(h) with Bolt Gun Performance ------------- Evolutions (0) 0 Regions Visited (3) 600 Robots Destroyed (22) 110 Value Destroyed (458) 458 Prototype IDs (16) 320 Alien Tech Used (0) 0 Bonus (800) 800 TOTAL SCORE: 2288 Bonus ------- Registered with UFD 300 Met Optimus in HQ 500 Cogmind --------- Core Integrity 0/250 Matter 265/300 Energy 99/100 System Corruption 0% Temperature Cool (0) Movement Treading (160) Location -8/Scraptown Parts ------- > --- POWER (1) -------- (None) > --- PROPULSION (2) --- Improved Treads Medium Treads > --- UTILITY (2) ------ Advanced Heat Sink High-capacity Storage Unit > --- WEAPON (2) ------- Overtuned Pulse Rifle Heavy Particle Cannon > --- INVENTORY (20) --- Deuterium Engine Nuclear Core Improved Titanium Leg Armored Leg Scrap Suit Advanced Weight Redist. System Improved Terrain Scanner Experimental Terrain Scanner Surveybot 17 Chip Authchip [R/Combat] Authchip [Device] Scrapoid Pod Ion Cannon Improved Proton Missile Launcher Improved Datajack Chainsword DRS Beacon (Ready) Peak State ------------ > --- POWER ------------ Light Fission Core > --- PROPULSION ------- Improved Treads Medium Treads > --- UTILITY ---------- High-capacity Storage Unit Experimental Terrain Scanner > --- WEAPON ----------- Improved Datajack Chainsword > --- INVENTORY -------- Deuterium Engine Nuclear Core Improved Titanium Leg Armored Leg Scrap Suit Advanced Heat Sink Advanced Weight Redist. System Improved Terrain Scanner Surveybot 17 Chip Authchip [R/Combat] Authchip [Device] Scrapoid Pod Overtuned Pulse Rifle Heavy Particle Cannon Ion Cannon Improved Proton Missile Launcher DRS Beacon [Rating: 36] Favorites ----------- Power Light Fission Core Engine Ion Engine Power Core Light Fission Core Propulsion Aluminum Leg Treads Improved Treads Leg Aluminum Leg Utility High-capacity Storage Unit Device Improved Terrain Scanner Storage High-capacity Storage Unit Processor Signal Interpreter Weapon Chainsword Energy Gun Medium Laser Energy Cannon Heavy Particle Cannon Ballistic Gun Light Assault Rifle Special Weapon Mining Laser Impact Weapon Maul Slashing Weapon Chainsword Special Melee Weapon Improved Datajack Build | -11 -10 -10 -8 ------- Run | Yrd Mat Sub Scr Slots Evolved . | . . . . Power . | . . . . Propulsion . | . . . . Utility . | . . . . Weapon . | . . . . Parts Attached 33 | 7 14 . 12 Power 4 | 1 2 . 1 Engine 3 | 1 2 . . Core 1 | . . . 1 Reactor . | . . . . Propulsion 9 | 2 5 . 2 Treads 2 | . . . 2 Leg 7 | 2 5 . . Wheel . | . . . . Hover . | . . . . Flight . | . . . . Utility 8 | 2 2 . 4 Device 5 | 1 1 . 3 Storage 2 | 1 . . 1 Processor 1 | . 1 . . Hackware . | . . . . Protection . | . . . . Artifact . | . . . . Weapon 12 | 2 5 . 5 Energy Gun 4 | 2 1 . 1 Energy Cannon 1 | . . . 1 Ballistic Gun 2 | . 2 . . Ballistic Cannon . | . . . . Launcher . | . . . . Special Weapon 1 | . 1 . . Impact Weapon 1 | . . . 1 Slashing Weapon 1 | . . . 1 Piercing Weapon . | . . . . Special Melee Weapon 2 | . 1 . 1 Unidentified Prototypes . | . . . . Parts Lost 6 | . 5 . 1 Power 3 | . 2 . 1 Propulsion . | . . . . Utility 1 | . 1 . . Weapon 2 | . 2 . . Highest Loss Streak 3 | . 3 . 1 To Critical Strikes . | . . . . Average Backups 12 | . 6 8 14 Power 1 | . . . 1 Propulsion 1 | . 1 2 1 Utility 5 | . 3 3 6 Weapon 2 | . . 2 3 Tool/Special . | . . . . Unused Backups 19 | . 2 . 17 Power 2 | . . . 2 Propulsion 4 | . . . 4 Utility 10 | . 2 . 8 Weapon 2 | . . . 2 Tool/Special 1 | . . . 1 Average Slot Usage (%) 93 | . 99 100 90 Engine 6 | . 13 14 3 Core 7 | . . . 10 Treads 17 | . . . 23 Leg 10 | . 28 28 4 Device 8 | . 9 . 8 Storage 14 | . 14 14 14 Processor 5 | . 4 14 5 Energy Gun 8 | . 20 14 3 Ballistic Gun 1 | . 4 6 . Impact Weapon 2 | . . . 3 Slashing Weapon 7 | . . . 10 Special Melee Weapon 1 | . 1 . 1 Peak Build Rating 36 | 7 8 8 36 Average Rating 19 | 4 7 8 23 On Entrance 5 | . 7 8 8 Avg Prop Armor Cover (%) . | . . . . Naked Turns . | . . . . Heaviest Build 57 | 13 13 12 57 Greatest Support 51 | 20 20 20 51 Greatest Overweight (x) 1 | . . . 1 Average Overweight (x) . | . . . . Largest Inventory Capacity 20 | 8 8 8 20 Average Capacity 14 | 6 8 8 16 Most Carried 20 | 2 8 8 20 Average Carried 12 | . 6 8 15 Final Capacity 20 | 8 8 8 20 Final Carried 19 | 1 8 8 19 Class Distribution -------------------- 75% | Mutant 24% | Scavenger-Mutant Dominant Class ---------------- Mutant | -10/Materials Scavenger-Mutant | -10/Subcaves Mutant | -8/Scraptown Resources | -11 -10 -10 -8 ----------- Run | Yrd Mat Sub Scr Matter Collected 570 | 214 232 24 100 Remotely . | . . . . Salvage Created 705 | 84 621 . . Parts 41 | 4 37 . . Haulers Intercepted 1 | . 1 . . Recyclers Shooed . | . . . . Parts Field Recycled . | . . . . Retrieved Matter . | . . . . Parts Self-Destructed 3 | . . 3 . Prevented . | . . . . Parts Restored . | . . . . Kills | -11 -10 -10 -8 ------- Run | Yrd Mat Sub Scr Combat Hostiles Destroyed 19 | . 19 . . Guns 19 | . 19 . . Classes Destroyed 5 | 2 3 . . Tunneler 1 | 1 . . . Hauler 1 | . 1 . . Recycler 1 | 1 . . . Swarmer 9 | . 9 . . Grunt 10 | . 10 . . Best Kill Streak 6 | 2 6 . . Combat Bots Only 6 | . 6 . . Max Kills in Single Turn 1 | 1 1 . . Gunslinging . | . . . . Exploded . | . . . . Melee . | . . . . Uniques/NPCs Destroyed . | . . . . Combat | -11 -10 -10 -8 -------- Run | Yrd Mat Sub Scr Hostile Shots Fired 141 | . 104 2 35 Missed 37 | . 27 1 9 Hits 104 | . 77 1 26 Projectile 104 | . 77 1 26 Damage Taken 1027 | . 796 30 201 Core 254 | . 179 30 45 Absorbed by Shields . | . . . . Core Remaining (%) 100 | 100 . . . Volleys Fired 76 | 2 64 10 . Largest 2 | 2 2 1 . Hottest 100 | 100 100 100 . Shots Fired 135 | 4 121 10 . Gun 123 | 4 119 . . Cannon . | . . . . Launcher . | . . . . Special 12 | . 2 10 . Kinetic 18 | . 18 . . Thermal 117 | 4 103 10 . Explosive . | . . . . Electromagnetic . | . . . . Robot Hit Streak 11 | 3 11 . . Robot Miss Streak 6 | . 6 . . Penetration Max . | . . . . Secondary Targets 3 | . 3 . . Max Gunslinging Chain 1 | . 1 . . Shots Hit Robots 78 | 3 74 . 1 Core Hits 37 | 3 34 . . Critical Kills . | . . . . Critical Parts Destroyed . | . . . . Critical Strikes 5 | 2 3 . . Burn 5 | 2 3 . . Melee Attacks 5 | . 4 . 1 Impact . | . . . . Slashing . | . . . . Piercing . | . . . . Sneak Attacks 3 | . 3 . . Combat Hostiles . | . . . . Follow-up Attacks . | . . . . Damage Inflicted 873 | 37 836 . . Guns 873 | 37 836 . . Cannons . | . . . . Explosions . | . . . . Melee . | . . . . Ramming . | . . . . Kinetic 87 | . 87 . . Thermal 786 | 37 749 . . Explosive . | . . . . Electromagnetic . | . . . . Impact . | . . . . Slashing . | . . . . Piercing . | . . . . Highest Corruption . | . . . . Average Corruption . | . . . . Corruption Purged . | . . . . Corruption Blocked . | . . . . Overload Shots . | . . . . Overflow Damage . | . . . . Projectiles . | . . . . Explosions . | . . . . Melee . | . . . . Knockbacks . | . . . . Impact . | . . . . Kinetic . | . . . . Secondary . | . . . . Self-Inflicted Damage . | . . . . Shots . | . . . . Rammed . | . . . . Targets Rammed . | . . . . Kicked . | . . . . Crushed . | . . . . Highest Temperature 304 | 39 304 . . Average Temperature 84 | 20 87 . . Received Heat Transfer 315 | . 288 9 18 Effects 4 | . 4 . . Energy Bleed 1 | . 1 . . Interference 3 | . 3 . . Siege Activations . | . . . . Martial Activations . | . . . . Shielding Activations . | . . . . Robots Disrupted . | . . . . Combat Hostiles . | . . . . Robots Corrupted . | . . . . Combat Hostiles . | . . . . Parts Fried . | . . . . Impact Corruptions . | . . . . Robots Melted . | . . . . Combat Hostiles . | . . . . Parts Melted 6 | 1 5 . . Heat Transferred 2642 | 259 2383 . . Parts Sabotaged . | . . . . Parts Stolen . | . . . . Parts Stripped . | . . . . Power Chain Reactions . | . . . . Alert | -11 -10 -10 -8 ------- Run | Yrd Mat Sub Scr Maximum Alert Level 1 | . 1 . . Low Security (%) 79 | 100 78 . . Level 1 20 | . 21 . . Level 2 . | . . . . Level 3 . | . . . . Level 4 . | . . . . Level 5 . | . . . . High Security . | . . . . Max Security . | . . . . Peak Influence 240 | 5 240 . . Initial . | . . . . Average 104 | 1 108 . . Influence Increases 563 | 10 553 . . Destroy 0b10 Robot/C 380 | . 380 . . Destroy 0b10 Robot/NC 15 | 10 5 . . Destroy Leader 72 | . 72 . . Successful Hack 31 | . 31 . . Destroy Structure 5 | . 5 . . Lose Combat Pursuer 60 | . 60 . . Influence Decreases 563 | 10 401 152 . Entered New Map 74 | . . 74 . Time Decay 439 | 10 351 78 . Lost Part 50 | . 50 . . Squads Dispatched 6 | . 6 . . Investigation 2 | . 2 . . Extermination . | . . . . Reinforcement 4 | . 4 . . Assault . | . . . . Garrison . | . . . . Intercept . | . . . . Searches Triggered . | . . . . Construction Impeded . | . . . . Haulers Reinforced . | . . . . Active Scanning Responses . | . . . . Cargo Convoy Interrupts . | . . . . Stealth | -11 -10 -10 -8 --------- Run | Yrd Mat Sub Scr Distress Signals . | . . . . Communications Jammed . | . . . . Distress Signals . | . . . . Times Spotted 45 | . 39 1 5 Peak Tracking Total 5 | . 5 1 4 Tactical Retreats 3 | . 3 . . Traps | -11 -10 -10 -8 ------- Run | Yrd Mat Sub Scr Traps Triggered . | . . . . Indirectly . | . . . . Trap Hack Attempts . | . . . . Triggered . | . . . . Disarmed . | . . . . Reprogrammed . | . . . . Reused . | . . . . Traps Extracted . | . . . . Installed . | . . . . Triggered . | . . . . Machines | -11 -10 -10 -8 ---------- Run | Yrd Mat Sub Scr Machines Disabled . | . . . . Max in Single Turn . | . . . . Machines Repaired . | . . . . Machines Dismantled . | . . . . Machines Sabotaged . | . . . . Overloaded Fab Kills . | . . . . Hacking | -11 -10 -10 -8 --------- Run | Yrd Mat Sub Scr Machines Accessed 13 | . 5 . 8 Terminals 4 | . 4 . . Fabricators . | . . . . Repair Stations . | . . . . Recycling Units 1 | . 1 . . Scanalyzers . | . . . . Garrison Access . | . . . . Total Hacks 69 | . 20 . 49 Successful 62 | . 13 . 49 Failed 7 | . 7 . . Catastrophic 1 | . 1 . . Database Lockouts . | . . . . Manual 15 | . 15 . . Terminals 17 | . 17 . . Fabricators . | . . . . Repair Stations . | . . . . Recycling Units 3 | . 3 . . Scanalyzers . | . . . . Garrison Access . | . . . . Terminal Hacks 54 | . 5 . 49 Record 39 | . . . 39 Robot Analysis 9 | . . . 9 Prototype ID Bank 1 | . 1 . . Fabricator Index 1 | . 1 . . Alert Level 1 | . 1 . . Locate Traps 1 | . 1 . . Recall Reinforcements 1 | . 1 . . Proto ID Catalog 1 | . . . 1 Fabricator Hacks . | . . . . Repair Station Hacks . | . . . . Recycling Unit Hacks 1 | . 1 . . Report Inventory 1 | . 1 . . Scanalyzer . | . . . . Garrison Access Hacks . | . . . . Unauthorized Hacks 7 | . 7 . . Terminals 7 | . 7 . . Assimilate 3 | . 3 . . Botnet 4 | . 4 . . Fabricators . | . . . . Repair Stations . | . . . . Recycling Units . | . . . . Scanalyzers . | . . . . Garrison Access . | . . . . Data Cores Recovered . | . . . . Used . | . . . . Hacking Detections 5 | . 5 . . Full Trace Events 3 | . 3 . . Feedback Events . | . . . . Feedback Blocked . | . . . . Robot Schematics Acquired . | . . . . Robots Built . | . . . . Authchips . | . . . . Time . | . . . . Total Robot Build Rating . | . . . . Part Schematics Acquired . | . . . . Parts Built . | . . . . Authchips . | . . . . Time . | . . . . Total Part Build Rating . | . . . . Part Studies Acquired . | . . . . Parts Repaired . | . . . . Time . | . . . . Parts Recycled . | . . . . Recycled Matter . | . . . . Retrieved Matter . | . . . . Retrieved Components . | . . . . Parts Scanalyzed . | . . . . Part Schematics Acquired . | . . . . Parts Damaged . | . . . . Bothacking | -11 -10 -10 -8 ------------ Run | Yrd Mat Sub Scr Used RIF Installer . | . . . . Robots Hacked 2 | . 2 . . Non-combat 2 | . 2 . . Combat . | . . . . Robot Hacks Applied 2 | . 2 . . parse_system 1 | . 1 . . check_alert 1 | . 1 . . Relay Couplers Released . | . . . . Fabnet Peak Effective % . | . . . . Robots Rewired . | . . . . Allies Hacked . | . . . . Hacks Repelled . | . . . . Allies | -11 -10 -10 -8 -------- Run | Yrd Mat Sub Scr Total Allies . | . . . . Largest Group . | . . . . Highest-Rated Group . | . . . . Highest-Rated Ally . | . . . . Total Orders . | . . . . Ally Attacks . | . . . . Total Damage . | . . . . Kills . | . . . . Allies Corrupted . | . . . . Allies Melted 1 | . . . 1 Intel | -11 -10 -10 -8 ------- Run | Yrd Mat Sub Scr Active Infowar (turns) 4234 | 13 883 . 3338 Terrain 3338 | . . . 3338 Seismic 896 | 13 883 . . Robot Analysis Total 9 | . . . 9 Derelict Logs Recovered . | . . . . Drone Launches . | . . . . Drone Recoveries . | . . . . Exploration | -11 -10 -10 -8 ------------- Run | Yrd Mat Sub Scr Turns Passed 7728 | 65 1803 207 5653 Spaces Moved 3597 | 43 878 116 2560 Core 10 | 10 . . . Treads 1770 | . . . 1770 Legs 1817 | 33 878 116 790 Wheels . | . . . . Hover . | . . . . Flight . | . . . . Fastest Speed 50 | 50 120 120 120 Average Speed 144 | 103 120 120 154 Slowest Speed 240 | 120 120 120 240 Overloaded Moves . | . . . . Propulsion Burnouts . | . . . . Robots Hopped . | . . . . Potential Cave-ins . | . . . . Cave-ins Triggered . | . . . . Exploration Rate (%) 49 | 3 89 10 95 Regions Visited 3 Branch Regions 2 Pre-discovered Areas 1 | . . 1 . Known Exits Taken 2 | . 1 1 . Unknown Exits Taken 1 | 1 . . . Scrap Searched 9 | . . . 9 Spaces Dug 2 | . 2 . . Terrain Destroyed 2 | . 2 . . Melee . | . . . . Projectile 2 | . 2 . . AOE . | . . . . Terrain Rammed . | . . . . Walls Destroyed . | . . . . Machines Disabled . | . . . . Actions | -11 -10 -10 -8 --------- Run | Yrd Mat Sub Scr Total 5978 | 59 1502 153 4264 Wait 2180 | . 510 26 1644 Move 3594 | 42 877 115 2560 Hop . | . . . . Pick Up 55 | 8 20 . 27 Fast Attach . | . . . . Attach 17 | 7 5 . 5 Detach 1 | . . . 1 Swap 24 | . 14 2 8 Drop 26 | . 8 . 18 Fire 76 | 2 64 10 . Melee 5 | . 4 . 1 Ram . | . . . . Kick . | . . . . Crush . | . . . . Escape Stasis . | . . . . Rewire . | . . . . Trap . | . . . . Miscellaneous . | . . . . Route ------- -11/Scrapyard -10/Materials (discovered 4 exits: *Mat x2 / *Min / *Sub) -10/Subcaves -8/Scraptown (discovered 2 exits: *Fac x2) History --------- Turn | Location | Event 22 | -11/Scrapyard | Discovered new exit (range 16) 66 | -11/Scrapyard | Entered Materials 302 | -10/Materials | Build established: Mutant 886 | -10/Materials | Discovered new exit (range 12) 1006 | -10/Materials | Discovered new exit (range 16) 1101 | -10/Materials | Core integrity fell below 50% 1140 | -10/Materials | Lost 3 parts (1p2w) 1308 | -10/Materials | Discovered new exit (range 15) 1331 | -10/Materials | Identified exit to Materials 1404 | -10/Materials | Build established: Scavenger-Mutant 1432 | -10/Materials | Identified exit to Mines 1661 | -10/Materials | Discovered new exit (range 8) 1669 | -10/Materials | Identified exit to Subcaves 1869 | -10/Materials | Entered Subcaves 1870 | -10/Subcaves | Approached by a straggling Scientist 1951 | -10/Subcaves | A swath of the cavern ceiling suddenly collapsed 2033 | -10/Subcaves | Learned location of Zion (-7) 2033 | -10/Subcaves | Met a Zionite searching for "candidates" 2075 | -10/Subcaves | Identified exit to Scraptown 2076 | -10/Subcaves | Entered Scraptown 2077 | -8/Scraptown | Core integrity fell below 20% 2529 | -8/Scraptown | Discovered new exit (range 5) 2537 | -8/Scraptown | Identified exit to Factory 2705 | -8/Scraptown | Visited Cyclists 2739 | -8/Scraptown | Visited Assassins FH 2798 | -8/Scraptown | Heard Great Nut preacher, LISTEN AND RECITE! 2807 | -8/Scraptown | Visited UFD Registry 2811 | -8/Scraptown | Registered with UFD as "Thermocell" 2832 | -8/Scraptown | Visited Shadow of the Wyrm 2986 | -8/Scraptown | Entered Cyclist Reading Room 3024 | -8/Scraptown | Visited Junk Repository 3330 | -8/Scraptown | Build established: Mutant 3479 | -8/Scraptown | Visited CPS Storage 3513 | -8/Scraptown | Visited Fellowship of the Rings 3564 | -8/Scraptown | Visited Bundlers 4035 | -8/Scraptown | Visited Cartography Club 4070 | -8/Scraptown | Found Surveybot 17 Chip 5822 | -8/Scraptown | Visited Scrapoid Pod Storage 5830 | -8/Scraptown | Found Scrapoid Pod 5871 | -8/Scraptown | Visited Derelict Rescue Squad 5881 | -8/Scraptown | Found DRS Beacon 5974 | -8/Scraptown | Visited Curators Association 6075 | -8/Scraptown | Found Scrap Suit 6143 | -8/Scraptown | Discovered exit to Factory (range 5) 6197 | -8/Scraptown | Visited Analyses Database 6237 | -8/Scraptown | Visited Infowarlord's Domain 6249 | -8/Scraptown | Found Exp. Terrain Scanner 6289 | -8/Scraptown | Visited DA-N13 Charitable Foundation 7004 | -8/Scraptown | Visited Scrap Suit Storage 7085 | -8/Scraptown | Visited Science Guys 7142 | -8/Scraptown | Visited Science Testing Area 7364 | -8/Scraptown | Met Optimus 7364 | -8/Scraptown | Accepted into 0bPrime 7663 | -8/Scraptown | Civil war broke out across Scraptown 7729 | -8/Scraptown | Destroyed by EA-R6L(h) with Bolt Gun Last Messages --------------- 07672_ Slug penetrates Machine. 07672_ Machine disabled. 07672_ Slug penetrates Machine. 07677_ Slug penetrates QC-Y81(j). 07679_ QC-Y81(j) destroyed. 07693_ 3Z-M5L(h): "We are one!" 07696_ Penetrated by Bolt. 07696_ Bolt penetrates Wall. 07701_ Bolt penetrates UA-B1L(c). 07707_ MB-CZN(x) sneak attacks. 07707_ UA-B1L(c) destroyed. 07716_ Penetrated by Bolt. 07718_ Bolt penetrates Machine. 07722_ Penetrated by Bolt. 07726_ Bolt penetrates Machine. 07726_ Penetrated by Bolt. 07726_ Lgt. Fission Core destroyed. 07726_ Slug penetrates Machine. 07729_ Bolt penetrates Machine. [Achievement: This Is Interesting...] Map ----- +----------------------------------------------------+ | ?##?####?#?#"""##"""##""|##"""#?### ###???# < ### | | ###?#####?##"" ##"" ##""|##! "#### ###### ##? | | ?####?####?#"" #? | | ##?#?###?### !! !% #? | | ???###?##?######################## =! ###########? | | ??######?##?#??###?#?#####?#?##??##%!##?#?#?###?#? | | #??? ?# ?#####??#################[!######?###?#? | | #??? ? ?##########?###?##""""""""## ## #"###"# ?? | | #? ?##### ###"?????"?###" "&& "## #### "!" #### | | ? ?# # #???? ""??##" "## #" """ "# | | ???# ## # ##? ? "###"" ""## ##"" ""## | | # ### ###"""?""""??#" [ "## ##]" "=## | | ? #X#### ############?#""/%& "#" !"#"" ""## | | ? #### ## ### """""""###" !! "## %#" "# | | ?#??# #?#" "###"" ""## ##"" ""## | | ##### ######?#" "### ## ##*" "[## | | ###" "### ## ##"" ""## | | ###" "#?# ## #" "# | | ##### ########### #####?##### ##### ## ########## | | ##### ###########[########### ##### ## ##????#??? | | #"""" """"""""" " """"""""""" """""h "" "######### | | #" j hg "## """"# | | #" *! "## " "# | | #" !!%[%! !="## X"# | | #" **%!= !%=## "# | | #" %&!=! @ [* ""# | | " """"" """""""""""""""""" "# " "# | | " """""""""""""""""""""""""""" "# """"# | | " ""###### ################"" ## """"# | | " ""# ##???#?#??#"" "######### | | " ""# X"######?###"" "######### | | " ""# "" "" ###########"" "## | | " ""# "" "" X"##?#??####"" "## ! | | " ""# " " ######### #"" "## | | #" "" "" | | #" "" "" "## | | #" ""# " " ######### #"" "######### | | ""# "" "" ""####?#?###"" "#???##??# | | ""# "" "" ####?#?####"" "###?????? | | ""# X"#??#??####"" "##??#?#?# | | ""# ###?##?####"" "######### | | ""###### ################"" "## # | | """""""""""""""""""""""""""" "## $ # | | """""""""""""""""""""""""""" # | | "## ### | | "## ### | | "## # | | #" ## %[ # | | #" # ] ] # | | #"""""" """"""""""" """"""""""" """""" ######### | +----------------------------------------------------+ Best States ------------- Heat Dissipation 44 Energy Generation 18 Energy Capacity 250 Matter Stores 300 Matter Capacity 300 Sight Range 16 Terrain Scan Range 30 Terrain Scan Density 10 Evasion (%) 55 Recoil Reduction 2 Authchip Count 2 Item Schematics ----------------- None Robot Schematics ------------------ None Fabricated ------------ Nothing Repaired ---------- Nothing Studied --------- None Alien Tech Used ----------------- None Achievements -------------- Armchair Analyst This Is Interesting... root@ Challenges ------------ None Game ------ Seed MiningExplosiveShell Manual? 0 Play Time 00:52:45 Cumulative 21.0 hours Start 2026.02.19 @ 21:45:08 End 2026.02.19 @ 22:48:53 Sessions 1 Manual Loads 0 Difficulty Rogue Special Mode None Game No. 25 Rogue 25 Adventurer 0 Explorer 0 Win Type - Total 0 Types 0/0/0/0/0/0/0/0/0/0 Lore% 28 Gallery% 26 Achievement% 21 Wizard Run 0 Options --------- Layout 1 ASCII 0 Keyboard 0 Movement Mouse Keybinds 0 Fullscreen 1 Font 24/Swanston Map View 50x35 Zoom Use 0% Tactical HUD 1 Map Filters NONE Filters NONE Steam 1 RUN: cd1cdb12-83e9-4003-add2-2bddd361660f